[Event "Titled Tuesday Blitz November 29 Early 2022"]
[White "Hambleton, Aman"]
[Black "Havas, Ladislav"]
[WhiteFideId "2606577"]
[BlackFideId "14501090"]
[WhiteElo "2538"]
[BlackElo "2199"]
[Result "1-0"]
[Round "01"]
[TimeControl "180+1"]
[Date "2022.11.30"]
[WhiteClock "0:00:08"]
[BlackClock "0:01:16"]

1. d4 {[%clk 0:02:59]}  Nf6 {[%clk 0:02:59]} 2. Bf4 {[%clk 0:02:53]}  c5 {[%clk 0:02:58]} 3. e3 {[%clk 0:02:51]}  d5 {[%clk 0:02:57]} 4. c3 {[%clk 0:02:50]}  Nc6 {[%clk 0:02:57]} 5. Nd2 {[%clk 0:02:51]}  Qb6 {[%clk 0:02:57]} 6. Qb3 {[%clk 0:02:48]}  c4 {[%clk 0:02:58]} 7. Qc2 {[%clk 0:02:46]}  Bg4 {[%clk 0:02:55]} 8. e4 {[%clk 0:02:27]}  e6 {[%clk 0:02:53]} 9. Ne2 {[%clk 0:01:35]}  Be7 {[%clk 0:02:49]} 10. Ng3 {[%clk 0:01:32]}  dxe4 {[%clk 0:02:45]} 11. Nxc4 {[%clk 0:01:23]}  Qd8 {[%clk 0:02:44]} 12. Nxe4 {[%clk 0:01:22]}  O-O {[%clk 0:02:40]} 13. Bd3 {[%clk 0:01:18]}  h6 {[%clk 0:02:38]} 14. h3 {[%clk 0:01:10]}  Bf5 {[%clk 0:02:25]} 15. Nxf6+ {[%clk 0:01:09]}  Bxf6 {[%clk 0:02:25]} 16. Bxf5 {[%clk 0:01:08]}  exf5 {[%clk 0:02:25]} 17. Qxf5 {[%clk 0:01:08]}  Re8+ {[%clk 0:02:25]} 18. Be3 {[%clk 0:00:53]}  Nxd4 {[%clk 0:02:18]} 19. cxd4 {[%clk 0:00:36]}  Qxd4 {[%clk 0:02:17]} 20. Rc1 {[%clk 0:00:20]}  g6 {[%clk 0:02:09]} 21. Qg4 {[%clk 0:00:10]}  Qd3 {[%clk 0:02:07]} 22. Qd1 {[%clk 0:00:10]}  Qe4 {[%clk 0:02:01]} 23. O-O {[%clk 0:00:09]}  Rad8 {[%clk 0:02:02]} 24. Qf3 {[%clk 0:00:09]}  Qe7 {[%clk 0:01:56]} 25. a4 {[%clk 0:00:08]}  b6 {[%clk 0:01:55]} 26. Bxh6 {[%clk 0:00:08]}  Qb4 {[%clk 0:01:52]} 27. b3 {[%clk 0:00:06]}  Bh8 {[%clk 0:01:49]} 28. Be3 {[%clk 0:00:05]}  Rd3 {[%clk 0:01:47]} 29. h4 {[%clk 0:00:03]}  Qxb3 {[%clk 0:01:47]} 30. h5 {[%clk 0:00:03]}  g5 {[%clk 0:01:43]} 31. h6 {[%clk 0:00:03]}  f6 {[%clk 0:01:40]} 32. Qf5 {[%clk 0:00:03]}  Kf7 {[%clk 0:01:29]} 33. Qh7+ {[%clk 0:00:03]}  Ke6 {[%clk 0:01:29]} 34. Qe4+ {[%clk 0:00:03]}  Kf7 {[%clk 0:01:29]} 35. Qb7+ {[%clk 0:00:02]}  Re7 {[%clk 0:01:28]} 36. Qa8 {[%clk 0:00:02]}  Re8 {[%clk 0:01:27]} 37. Qb7+ {[%clk 0:00:03]}  Re7 {[%clk 0:01:27]} 38. Qb8 {[%clk 0:00:03]}  Re8 {[%clk 0:01:26]} 39. Nd6+ {[%clk 0:00:03]}  Rxd6 {[%clk 0:01:25]} 40. Qxd6 {[%clk 0:00:04]}  Kg6 {[%clk 0:01:24]} 41. Rc7 {[%clk 0:00:05]}  Kxh6 {[%clk 0:01:21]} 42. Rd7 {[%clk 0:00:05]}  Qxa4 {[%clk 0:01:20]} 43. Qd3 {[%clk 0:00:05]}  Qe4 {[%clk 0:01:18]} 44. Qxe4 {[%clk 0:00:05]}  Rxe4 {[%clk 0:01:18]} 45. Rxa7 {[%clk 0:00:06]}  b5 {[%clk 0:01:18]} 46. Rb7 {[%clk 0:00:06]}  b4 {[%clk 0:01:18]} 47. Rb1 {[%clk 0:00:06]}  f5 {[%clk 0:01:17]} 48. R7xb4 {[%clk 0:00:06]}  Re5 {[%clk 0:01:16]} 49. Rb6+ {[%clk 0:00:06]}  Kh5 {[%clk 0:01:15]} 50. g3 {[%clk 0:00:06]}  f4 {[%clk 0:01:16]} 51. gxf4 {[%clk 0:00:07]}  gxf4 {[%clk 0:01:16]} 52. Bxf4 {[%clk 0:00:07]}  Rf5 {[%clk 0:01:17]} 53. R1b5 {[%clk 0:00:07]}  Rxb5 {[%clk 0:01:16]} 54. Rxb5+ {[%clk 0:00:07]}  Kg4 {[%clk 0:01:16]} 55. Be5 {[%clk 0:00:07]}  Bxe5 {[%clk 0:01:16]} 56. Rxe5 {[%clk 0:00:08]} 1-0


[Site "https://www.chess.com"]

[Event "Titled Tuesday Blitz November 29 Early 2022"]
[White "Hoffmann, Asa"]
[Black "Rosen, Eric"]
[WhiteFideId "2001470"]
[BlackFideId "2032562"]
[WhiteElo "2117"]
[BlackElo "2362"]
[Result "1-0"]
[Round "01"]
[TimeControl "180+1"]
[Date "2022.11.30"]
[WhiteClock "0:01:01"]
[BlackClock "0:00:01"]

1. d4 {[%clk 0:02:57]}  d5 {[%clk 0:03:00]} 2. Bg5 {[%clk 0:02:55]}  f6 {[%clk 0:02:59]} 3. Bf4 {[%clk 0:02:55]}  Nc6 {[%clk 0:02:58]} 4. Nf3 {[%clk 0:02:48]}  g5 {[%clk 0:02:56]} 5. Bg3 {[%clk 0:02:44]}  h5 {[%clk 0:02:57]} 6. h3 {[%clk 0:02:43]}  Bf5 {[%clk 0:02:44]} 7. e3 {[%clk 0:02:40]}  e6 {[%clk 0:02:44]} 8. c4 {[%clk 0:02:39]}  Bd6 {[%clk 0:02:44]} 9. Bxd6 {[%clk 0:02:35]}  Qxd6 {[%clk 0:02:44]} 10. Nc3 {[%clk 0:02:35]}  Nge7 {[%clk 0:02:41]} 11. Qb3 {[%clk 0:02:33]}  O-O {[%clk 0:02:27]} 12. c5 {[%clk 0:02:27]}  Qd7 {[%clk 0:02:27]} 13. Be2 {[%clk 0:02:26]}  Rab8 {[%clk 0:02:19]} 14. Qd1 {[%clk 0:02:11]}  b6 {[%clk 0:02:10]} 15. cxb6 {[%clk 0:02:10]}  axb6 {[%clk 0:02:07]} 16. b3 {[%clk 0:02:10]}  h4 {[%clk 0:02:05]} 17. Rc1 {[%clk 0:02:07]}  Ra8 {[%clk 0:01:51]} 18. O-O {[%clk 0:02:00]}  Nb4 {[%clk 0:01:47]} 19. a4 {[%clk 0:01:50]}  c6 {[%clk 0:01:35]} 20. Qd2 {[%clk 0:01:47]}  Qd6 {[%clk 0:01:34]} 21. Nh2 {[%clk 0:01:43]}  Bg6 {[%clk 0:01:33]} 22. f4 {[%clk 0:01:38]}  e5 {[%clk 0:01:12]} 23. fxe5 {[%clk 0:01:32]}  fxe5 {[%clk 0:01:13]} 24. Nf3 {[%clk 0:01:31]}  Rf5 {[%clk 0:01:03]} 25. dxe5 {[%clk 0:01:28]}  Qd7 {[%clk 0:00:53]} 26. e4 {[%clk 0:01:25]}  Rf4 {[%clk 0:00:46]} 27. Nxg5 {[%clk 0:01:22]}  Rxf1+ {[%clk 0:00:42]} 28. Rxf1 {[%clk 0:01:21]}  d4 {[%clk 0:00:40]} 29. Bg4 {[%clk 0:01:20]}  Qd8 {[%clk 0:00:32]} 30. Ne2 {[%clk 0:01:18]}  c5 {[%clk 0:00:30]} 31. Ne6 {[%clk 0:01:16]}  Kh7 {[%clk 0:00:05]} 32. Qg5 {[%clk 0:01:13]}  Qe8 {[%clk 0:00:01]} 33. Qxh4+ {[%clk 0:01:09]}  Kg8 {[%clk 0:00:01]} 34. N2f4 {[%clk 0:01:08]}  Nf5 {[%clk 0:00:01]} 35. exf5 {[%clk 0:01:07]}  Bf7 {[%clk 0:00:02]} 36. Qg5+ {[%clk 0:01:06]}  Bg6 {[%clk 0:00:02]} 37. Nxg6 {[%clk 0:01:05]}  Ra7 {[%clk 0:00:01]} 38. Ne7+ {[%clk 0:01:04]}  Kf7 {[%clk 0:00:01]} 39. Qg7# {[%clk 0:01:01]} 1-0


[Site "https://www.chess.com"]

[Event "Titled Tuesday Blitz November 29 Early 2022"]
[White "Ingebretsen, Jens E"]
[Black "Samaganova, Aleksandra"]
[WhiteFideId "1522965"]
[BlackFideId "13800221"]
[WhiteElo "2213"]
[BlackElo "1864"]
[Result "0-1"]
[Round "01"]
[TimeControl "180+1"]
[Date "2022.11.30"]
[WhiteClock "0:00:50"]
[BlackClock "0:01:06"]

1. d4 {[%clk 0:02:24]}  Nf6 {[%clk 0:02:59]} 2. Nf3 {[%clk 0:02:24]}  e6 {[%clk 0:02:58]} 3. e3 {[%clk 0:02:25]}  b6 {[%clk 0:02:58]} 4. c4 {[%clk 0:02:26]}  Bb7 {[%clk 0:02:59]} 5. Nc3 {[%clk 0:02:27]}  Bb4 {[%clk 0:02:59]} 6. Be2 {[%clk 0:02:27]}  O-O {[%clk 0:02:59]} 7. O-O {[%clk 0:02:27]}  Bxc3 {[%clk 0:02:58]} 8. bxc3 {[%clk 0:02:27]}  Ne4 {[%clk 0:02:58]} 9. Qc2 {[%clk 0:02:28]}  f5 {[%clk 0:02:59]} 10. Nd2 {[%clk 0:02:25]}  Nxd2 {[%clk 0:02:54]} 11. Bxd2 {[%clk 0:02:23]}  Nc6 {[%clk 0:02:53]} 12. f3 {[%clk 0:02:20]}  Qf6 {[%clk 0:02:48]} 13. e4 {[%clk 0:02:13]}  fxe4 {[%clk 0:02:45]} 14. fxe4 {[%clk 0:02:14]}  Qg6 {[%clk 0:02:45]} 15. Bd3 {[%clk 0:02:13]}  Ne7 {[%clk 0:02:41]} 16. Bf4 {[%clk 0:01:56]}  Rac8 {[%clk 0:02:25]} 17. d5 {[%clk 0:01:51]}  exd5 {[%clk 0:02:15]} 18. cxd5 {[%clk 0:01:47]}  Qg4 {[%clk 0:02:05]} 19. Bg3 {[%clk 0:01:37]}  d6 {[%clk 0:01:57]} 20. c4 {[%clk 0:01:34]}  Ng6 {[%clk 0:01:47]} 21. e5 {[%clk 0:01:34]}  Qd4+ {[%clk 0:01:29]} 22. Kh1 {[%clk 0:01:26]}  Nxe5 {[%clk 0:01:26]} 23. Bxh7+ {[%clk 0:01:23]}  Kh8 {[%clk 0:01:26]} 24. Bf5 {[%clk 0:01:10]}  Rce8 {[%clk 0:01:13]} 25. Rf4 {[%clk 0:01:01]}  Qxa1+ {[%clk 0:01:10]} 26. Qb1 {[%clk 0:00:48]}  Qxb1+ {[%clk 0:01:07]} 27. Bxb1 {[%clk 0:00:49]}  Rxf4 {[%clk 0:01:07]} 28. Bxf4 {[%clk 0:00:50]}  Nxc4 {[%clk 0:01:06]} 0-1


[Site "https://www.chess.com"]

[Event "Titled Tuesday Blitz November 29 Early 2022"]
[White "Jakubowski, Krzysztof"]
[Black "Rios Escobar, Adan"]
[WhiteFideId "1112848"]
[BlackFideId "3403645"]
[WhiteElo "2373"]
[BlackElo "2336"]
[Result "1-0"]
[Round "01"]
[TimeControl "180+1"]
[Date "2022.11.30"]
[WhiteClock "0:01:13"]
[BlackClock "0:00:02"]

1. e4 {[%clk 0:02:51]}  c5 {[%clk 0:02:57]} 2. Nf3 {[%clk 0:02:50]}  d6 {[%clk 0:02:57]} 3. d4 {[%clk 0:02:49]}  cxd4 {[%clk 0:02:57]} 4. Nxd4 {[%clk 0:02:50]}  Nf6 {[%clk 0:02:58]} 5. Nc3 {[%clk 0:02:50]}  a6 {[%clk 0:02:57]} 6. h3 {[%clk 0:02:48]}  e5 {[%clk 0:02:55]} 7. Nde2 {[%clk 0:02:46]}  h5 {[%clk 0:02:54]} 8. Bg5 {[%clk 0:02:46]}  Be6 {[%clk 0:02:34]} 9. Bxf6 {[%clk 0:02:45]}  Qxf6 {[%clk 0:02:34]} 10. Nd5 {[%clk 0:02:45]}  Qd8 {[%clk 0:02:06]} 11. Nec3 {[%clk 0:02:44]}  Nd7 {[%clk 0:02:05]} 12. Bc4 {[%clk 0:02:41]}  b5 {[%clk 0:01:41]} 13. Bb3 {[%clk 0:02:39]}  Nc5 {[%clk 0:01:40]} 14. O-O {[%clk 0:02:24]}  Be7 {[%clk 0:01:36]} 15. a4 {[%clk 0:02:19]}  Nxb3 {[%clk 0:01:30]} 16. cxb3 {[%clk 0:02:18]}  Rb8 {[%clk 0:01:21]} 17. axb5 {[%clk 0:02:15]}  axb5 {[%clk 0:01:22]} 18. Ra7 {[%clk 0:02:15]}  Bd7 {[%clk 0:01:07]} 19. Nxe7 {[%clk 0:02:01]}  Qxe7 {[%clk 0:01:06]} 20. Nd5 {[%clk 0:02:00]}  Qd8 {[%clk 0:01:01]} 21. Nc7+ {[%clk 0:02:00]}  Ke7 {[%clk 0:00:56]} 22. Qd2 {[%clk 0:01:54]}  Rh6 {[%clk 0:00:44]} 23. Rfa1 {[%clk 0:01:38]}  Rg6 {[%clk 0:00:40]} 24. Kh2 {[%clk 0:01:28]}  Kf8 {[%clk 0:00:37]} 25. Nd5 {[%clk 0:01:21]}  Be6 {[%clk 0:00:24]} 26. Ne7 {[%clk 0:01:15]}  Qb6 {[%clk 0:00:01]} 27. Nxg6+ {[%clk 0:01:13]}  fxg6 {[%clk 0:00:02]} 28. R7a6 {[%clk 0:01:13]} 1-0


[Site "https://www.chess.com"]

[Event "Titled Tuesday Blitz November 29 Early 2022"]
[White "Jiganchine, Roman"]
[Black "Ismayil, Malak"]
[WhiteFideId "2603667"]
[BlackFideId "13412604"]
[WhiteElo "2288"]
[BlackElo "1879"]
[Result "1-0"]
[Round "01"]
[TimeControl "180+1"]
[Date "2022.11.30"]
[WhiteClock "0:00:14"]
[BlackClock "0:00:06"]

1. e4 {[%clk 0:03:00]}  e5 {[%clk 0:02:57]} 2. Nf3 {[%clk 0:02:59]}  Nc6 {[%clk 0:02:52]} 3. Nc3 {[%clk 0:02:57]}  Nf6 {[%clk 0:02:51]} 4. Bb5 {[%clk 0:02:57]}  d6 {[%clk 0:02:49]} 5. O-O {[%clk 0:02:53]}  Be7 {[%clk 0:02:48]} 6. d4 {[%clk 0:02:52]}  exd4 {[%clk 0:02:47]} 7. Nxd4 {[%clk 0:02:50]}  Bd7 {[%clk 0:02:47]} 8. Nxc6 {[%clk 0:02:37]}  Bxc6 {[%clk 0:02:48]} 9. Bxc6+ {[%clk 0:02:36]}  bxc6 {[%clk 0:02:49]} 10. f3 {[%clk 0:02:33]}  O-O {[%clk 0:02:50]} 11. Be3 {[%clk 0:02:33]}  Nd7 {[%clk 0:02:47]} 12. Ne2 {[%clk 0:02:29]}  Bf6 {[%clk 0:02:43]} 13. Rb1 {[%clk 0:02:28]}  Qe7 {[%clk 0:02:17]} 14. Ng3 {[%clk 0:02:25]}  g6 {[%clk 0:02:16]} 15. Qd2 {[%clk 0:02:10]}  Rfb8 {[%clk 0:02:14]} 16. b3 {[%clk 0:02:10]}  a5 {[%clk 0:02:08]} 17. a4 {[%clk 0:02:09]}  c5 {[%clk 0:01:59]} 18. f4 {[%clk 0:01:58]}  Bh4 {[%clk 0:01:55]} 19. e5 {[%clk 0:01:33]}  dxe5 {[%clk 0:01:33]} 20. f5 {[%clk 0:01:32]}  Bxg3 {[%clk 0:01:28]} 21. hxg3 {[%clk 0:01:21]}  Rd8 {[%clk 0:01:17]} 22. Bg5 {[%clk 0:00:57]}  f6 {[%clk 0:01:16]} 23. fxg6 {[%clk 0:00:36]}  fxg5 {[%clk 0:00:47]} 24. Qd5+ {[%clk 0:00:34]}  Kh8 {[%clk 0:00:33]} 25. Rf7 {[%clk 0:00:29]}  Nb6 {[%clk 0:00:15]} 26. Qxa8 {[%clk 0:00:17]}  Nxa8 {[%clk 0:00:09]} 27. Rxe7 {[%clk 0:00:17]}  hxg6 {[%clk 0:00:10]} 28. Re1 {[%clk 0:00:15]}  Nb6 {[%clk 0:00:05]} 29. R1xe5 {[%clk 0:00:15]}  Rd1+ {[%clk 0:00:06]} 30. Kh2 {[%clk 0:00:15]}  Rd2 {[%clk 0:00:06]} 31. Rxc5 {[%clk 0:00:14]} 1-0


[Site "https://www.chess.com"]

[Event "Titled Tuesday Blitz November 29 Early 2022"]
[White "Johnson, Donald"]
[Black "Hovhannisyan, Robert"]
[WhiteFideId "30949122"]
[BlackFideId "13302507"]
[WhiteElo "2132"]
[BlackElo "2570"]
[Result "0-1"]
[Round "01"]
[TimeControl "180+1"]
[Date "2022.11.30"]
[WhiteClock "0:00:01"]
[BlackClock "0:00:45"]

1. e4 {[%clk 0:02:59]}  c6 {[%clk 0:02:58]} 2. d4 {[%clk 0:02:40]}  d5 {[%clk 0:02:59]} 3. e5 {[%clk 0:02:40]}  Bf5 {[%clk 0:02:58]} 4. Nf3 {[%clk 0:02:41]}  e6 {[%clk 0:02:58]} 5. Be2 {[%clk 0:02:42]}  Ne7 {[%clk 0:02:57]} 6. O-O {[%clk 0:02:42]}  h6 {[%clk 0:02:42]} 7. a4 {[%clk 0:02:33]}  c5 {[%clk 0:02:40]} 8. dxc5 {[%clk 0:02:30]}  Nec6 {[%clk 0:02:41]} 9. c3 {[%clk 0:02:26]}  Bxc5 {[%clk 0:02:29]} 10. b4 {[%clk 0:02:20]}  Be7 {[%clk 0:02:23]} 11. a5 {[%clk 0:02:10]}  a6 {[%clk 0:02:23]} 12. Re1 {[%clk 0:02:04]}  O-O {[%clk 0:02:22]} 13. h3 {[%clk 0:02:03]}  Nd7 {[%clk 0:02:16]} 14. Bd3 {[%clk 0:02:02]}  Bg6 {[%clk 0:02:12]} 15. Bxg6 {[%clk 0:02:01]}  fxg6 {[%clk 0:02:13]} 16. Qd3 {[%clk 0:01:56]}  Rf5 {[%clk 0:02:11]} 17. Nbd2 {[%clk 0:01:49]}  Ndxe5 {[%clk 0:02:06]} 18. Nxe5 {[%clk 0:01:46]}  Nxe5 {[%clk 0:02:07]} 19. Qe2 {[%clk 0:01:43]}  Bd6 {[%clk 0:01:57]} 20. Nf1 {[%clk 0:01:40]}  Kh7 {[%clk 0:01:55]} 21. Be3 {[%clk 0:01:37]}  Nc4 {[%clk 0:01:53]} 22. Bd4 {[%clk 0:01:36]}  e5 {[%clk 0:01:52]} 23. Be3 {[%clk 0:01:36]}  Qc7 {[%clk 0:01:46]} 24. Rad1 {[%clk 0:01:36]}  d4 {[%clk 0:01:41]} 25. cxd4 {[%clk 0:01:34]}  Bxb4 {[%clk 0:01:40]} 26. Nd2 {[%clk 0:01:27]}  Nxe3 {[%clk 0:01:33]} 27. fxe3 {[%clk 0:01:13]}  exd4 {[%clk 0:01:33]} 28. exd4 {[%clk 0:01:14]}  Bxa5 {[%clk 0:01:31]} 29. Rf1 {[%clk 0:01:13]}  Rxf1+ {[%clk 0:01:28]} 30. Rxf1 {[%clk 0:01:14]}  Bxd2 {[%clk 0:01:25]} 31. Qxd2 {[%clk 0:01:13]}  Rd8 {[%clk 0:01:26]} 32. Rd1 {[%clk 0:01:10]}  Rd5 {[%clk 0:01:24]} 33. Qd3 {[%clk 0:01:09]}  Qd7 {[%clk 0:01:23]} 34. Qe4 {[%clk 0:01:07]}  a5 {[%clk 0:01:23]} 35. Rd3 {[%clk 0:00:55]}  a4 {[%clk 0:01:22]} 36. Qe3 {[%clk 0:00:52]}  b5 {[%clk 0:01:21]} 37. Qd2 {[%clk 0:00:31]}  Qa7 {[%clk 0:01:11]} 38. Qb2 {[%clk 0:00:24]}  a3 {[%clk 0:01:01]} 39. Rxa3 {[%clk 0:00:16]}  Qxd4+ {[%clk 0:01:01]} 40. Qxd4 {[%clk 0:00:17]}  Rxd4 {[%clk 0:01:02]} 41. Ra7 {[%clk 0:00:17]}  g5 {[%clk 0:00:59]} 42. Rb7 {[%clk 0:00:18]}  b4 {[%clk 0:00:59]} 43. Kf2 {[%clk 0:00:18]}  g4 {[%clk 0:00:57]} 44. hxg4 {[%clk 0:00:17]}  Rxg4 {[%clk 0:00:57]} 45. Kf3 {[%clk 0:00:17]}  h5 {[%clk 0:00:57]} 46. Kf2 {[%clk 0:00:17]}  Kh6 {[%clk 0:00:57]} 47. Rb5 {[%clk 0:00:17]}  g6 {[%clk 0:00:57]} 48. Kf3 {[%clk 0:00:17]}  Rc4 {[%clk 0:00:57]} 49. Kf2 {[%clk 0:00:17]}  Rc2+ {[%clk 0:00:55]} 50. Kg1 {[%clk 0:00:17]}  Rb2 {[%clk 0:00:53]} 51. Kh2 {[%clk 0:00:17]}  Rb3 {[%clk 0:00:53]} 52. Kg1 {[%clk 0:00:17]}  h4 {[%clk 0:00:53]} 53. Kh2 {[%clk 0:00:17]}  g5 {[%clk 0:00:53]} 54. Kg1 {[%clk 0:00:17]}  Kh5 {[%clk 0:00:53]} 55. Kh2 {[%clk 0:00:18]}  Kg4 {[%clk 0:00:54]} 56. Rb8 {[%clk 0:00:17]}  Rb2 {[%clk 0:00:54]} 57. Rb5 {[%clk 0:00:17]}  h3 {[%clk 0:00:54]} 58. Kh1 {[%clk 0:00:16]}  hxg2+ {[%clk 0:00:52]} 59. Kh2 {[%clk 0:00:14]}  Kh4 {[%clk 0:00:51]} 60. Rb8 {[%clk 0:00:11]}  g1=Q+ {[%clk 0:00:51]} 61. Kxg1 {[%clk 0:00:11]}  Kg3 {[%clk 0:00:52]} 62. Kf1 {[%clk 0:00:10]}  Rb1+ {[%clk 0:00:52]} 63. Ke2 {[%clk 0:00:10]}  g4 {[%clk 0:00:52]} 64. Kd2 {[%clk 0:00:10]}  b3 {[%clk 0:00:50]} 65. Kc3 {[%clk 0:00:10]}  Kg2 {[%clk 0:00:49]} 66. Rg8 {[%clk 0:00:08]}  g3 {[%clk 0:00:49]} 67. Rb8 {[%clk 0:00:09]}  Kg1 {[%clk 0:00:49]} 68. Rg8 {[%clk 0:00:09]}  g2 {[%clk 0:00:50]} 69. Rg7 {[%clk 0:00:09]}  Kf2 {[%clk 0:00:49]} 70. Rf7+ {[%clk 0:00:09]}  Ke3 {[%clk 0:00:49]} 71. Re7+ {[%clk 0:00:10]}  Kf4 {[%clk 0:00:50]} 72. Rf7+ {[%clk 0:00:10]}  Ke5 {[%clk 0:00:50]} 73. Kb4 {[%clk 0:00:03]}  g1=Q {[%clk 0:00:49]} 74. Kb5 {[%clk 0:00:03]}  b2 {[%clk 0:00:48]} 75. Rc7 {[%clk 0:00:04]}  Qf1+ {[%clk 0:00:47]} 76. Kb6 {[%clk 0:00:04]}  Rc1 {[%clk 0:00:47]} 77. Kb7 {[%clk 0:00:01]}  b1=Q+ {[%clk 0:00:47]} 78. Ka8 {[%clk 0:00:01]}  Qa6+ {[%clk 0:00:45]} 79. Ra7 {[%clk 0:00:01]}  Rc8# {[%clk 0:00:45]} 0-1


[Site "https://www.chess.com"]

[Event "Titled Tuesday Blitz November 29 Early 2022"]
[White "Jumabayev, Rinat"]
[Black "Aarav Dengla"]
[WhiteFideId "13702661"]
[BlackFideId "45059756"]
[WhiteElo "2561"]
[BlackElo "2261"]
[Result "1-0"]
[Round "01"]
[TimeControl "180+1"]
[Date "2022.11.30"]
[WhiteClock "0:01:48"]
[BlackClock "0:00:28"]

1. e3 {[%clk 0:02:59]}  e5 {[%clk 0:02:41]} 2. c4 {[%clk 0:02:58]}  c6 {[%clk 0:02:35]} 3. d4 {[%clk 0:02:53]}  exd4 {[%clk 0:02:31]} 4. exd4 {[%clk 0:02:51]}  d5 {[%clk 0:02:30]} 5. Nc3 {[%clk 0:02:52]}  Nf6 {[%clk 0:02:27]} 6. Nf3 {[%clk 0:02:52]}  Bd6 {[%clk 0:02:25]} 7. Bd3 {[%clk 0:02:51]}  dxc4 {[%clk 0:02:23]} 8. Bxc4 {[%clk 0:02:50]}  Qe7+ {[%clk 0:02:24]} 9. Be3 {[%clk 0:02:50]}  Ng4 {[%clk 0:02:20]} 10. O-O {[%clk 0:02:36]}  Nxe3 {[%clk 0:02:12]} 11. fxe3 {[%clk 0:02:36]}  Qxe3+ {[%clk 0:02:07]} 12. Kh1 {[%clk 0:02:36]}  O-O {[%clk 0:02:08]} 13. Ne5 {[%clk 0:02:31]}  Bxe5 {[%clk 0:01:55]} 14. dxe5 {[%clk 0:02:31]}  Nd7 {[%clk 0:01:16]} 15. Rxf7 {[%clk 0:02:22]}  Rxf7 {[%clk 0:01:02]} 16. e6 {[%clk 0:02:22]}  Nf8 {[%clk 0:00:43]} 17. exf7+ {[%clk 0:02:20]}  Kh8 {[%clk 0:00:39]} 18. Qd8 {[%clk 0:02:16]}  Qc5 {[%clk 0:00:28]} 19. Na4 {[%clk 0:01:48]} 1-0


[Site "https://www.chess.com"]

[Event "Titled Tuesday Blitz November 29 Early 2022"]
[White "Kalashian, David"]
[Black "Jimenez, Joaquin"]
[WhiteFideId "13302418"]
[BlackFideId "109860"]
[WhiteElo "2490"]
[BlackElo "2163"]
[Result "1-0"]
[Round "01"]
[TimeControl "180+1"]
[Date "2022.11.30"]
[WhiteClock "0:00:03"]
[BlackClock "0:00:02"]

1. d4 {[%clk 0:02:59]}  Nf6 {[%clk 0:02:59]} 2. c4 {[%clk 0:02:58]}  g6 {[%clk 0:02:59]} 3. Nc3 {[%clk 0:02:58]}  Bg7 {[%clk 0:02:59]} 4. e4 {[%clk 0:02:57]}  d6 {[%clk 0:02:59]} 5. Be2 {[%clk 0:02:57]}  O-O {[%clk 0:02:59]} 6. Bg5 {[%clk 0:02:57]}  h6 {[%clk 0:02:56]} 7. Bf4 {[%clk 0:02:55]}  Nc6 {[%clk 0:02:53]} 8. Nf3 {[%clk 0:02:54]}  Nd7 {[%clk 0:02:52]} 9. d5 {[%clk 0:02:49]}  Nce5 {[%clk 0:02:51]} 10. Qd2 {[%clk 0:02:47]}  Kh7 {[%clk 0:02:45]} 11. O-O {[%clk 0:02:45]}  Nxf3+ {[%clk 0:02:43]} 12. Bxf3 {[%clk 0:02:44]}  Ne5 {[%clk 0:02:42]} 13. Be2 {[%clk 0:02:35]}  e6 {[%clk 0:02:38]} 14. Rad1 {[%clk 0:02:32]}  exd5 {[%clk 0:02:37]} 15. cxd5 {[%clk 0:02:30]}  Bd7 {[%clk 0:02:30]} 16. Be3 {[%clk 0:02:25]}  f5 {[%clk 0:02:27]} 17. f4 {[%clk 0:02:17]}  Nf7 {[%clk 0:02:25]} 18. Bd3 {[%clk 0:01:49]}  Qf6 {[%clk 0:02:04]} 19. Qc2 {[%clk 0:01:45]}  Rfe8 {[%clk 0:01:56]} 20. Bf2 {[%clk 0:01:36]}  Re7 {[%clk 0:01:53]} 21. Bg3 {[%clk 0:01:21]}  Rae8 {[%clk 0:01:51]} 22. e5 {[%clk 0:01:20]}  dxe5 {[%clk 0:01:46]} 23. fxe5 {[%clk 0:01:21]}  Nxe5 {[%clk 0:01:46]} 24. Kh1 {[%clk 0:01:00]}  a6 {[%clk 0:01:16]} 25. Be2 {[%clk 0:00:31]}  h5 {[%clk 0:01:01]} 26. Ne4 {[%clk 0:00:28]}  Qf8 {[%clk 0:00:54]} 27. Ng5+ {[%clk 0:00:24]}  Kh8 {[%clk 0:00:53]} 28. Qxc7 {[%clk 0:00:18]}  Bb5 {[%clk 0:00:48]} 29. Qc2 {[%clk 0:00:17]}  Bxe2 {[%clk 0:00:46]} 30. Qxe2 {[%clk 0:00:18]}  Qf6 {[%clk 0:00:35]} 31. Ne6 {[%clk 0:00:17]}  Rxe6 {[%clk 0:00:32]} 32. dxe6 {[%clk 0:00:18]}  Rxe6 {[%clk 0:00:33]} 33. h3 {[%clk 0:00:13]}  Nc6 {[%clk 0:00:26]} 34. Qc4 {[%clk 0:00:12]}  Re4 {[%clk 0:00:22]} 35. Qd5 {[%clk 0:00:09]}  Qg5 {[%clk 0:00:14]} 36. Bh2 {[%clk 0:00:08]}  Re2 {[%clk 0:00:11]} 37. Qf3 {[%clk 0:00:07]}  Rxb2 {[%clk 0:00:10]} 38. Bf4 {[%clk 0:00:07]}  Qe7 {[%clk 0:00:07]} 39. Qg3 {[%clk 0:00:07]}  Kh7 {[%clk 0:00:03]} 40. Rfe1 {[%clk 0:00:08]}  Qf6 {[%clk 0:00:03]} 41. Bg5 {[%clk 0:00:07]}  Qc3 {[%clk 0:00:02]} 42. Qxc3 {[%clk 0:00:04]}  Bxc3 {[%clk 0:00:02]} 43. Re6 {[%clk 0:00:03]} 1-0


[Site "https://www.chess.com"]

[Event "Titled Tuesday Blitz November 29 Early 2022"]
[White "Keymer, Vincent"]
[Black "Przybylski, Wojciech"]
[WhiteFideId "12940690"]
[BlackFideId "1117599"]
[WhiteElo "2600"]
[BlackElo "2221"]
[Result "1-0"]
[Round "01"]
[TimeControl "180+1"]
[Date "2022.11.30"]
[WhiteClock "0:01:50"]
[BlackClock "0:00:01"]

1. Nf3 {[%clk 0:02:59]}  Nf6 {[%clk 0:02:59]} 2. c4 {[%clk 0:02:59]}  c6 {[%clk 0:02:58]} 3. Nc3 {[%clk 0:02:59]}  d5 {[%clk 0:02:58]} 4. e3 {[%clk 0:02:59]}  e6 {[%clk 0:02:55]} 5. b3 {[%clk 0:02:59]}  Nbd7 {[%clk 0:02:54]} 6. Bb2 {[%clk 0:02:59]}  Be7 {[%clk 0:02:52]} 7. d4 {[%clk 0:02:58]}  O-O {[%clk 0:02:51]} 8. Bd3 {[%clk 0:02:58]}  b6 {[%clk 0:02:50]} 9. O-O {[%clk 0:02:57]}  Bb7 {[%clk 0:02:50]} 10. Qe2 {[%clk 0:02:55]}  c5 {[%clk 0:02:49]} 11. cxd5 {[%clk 0:02:54]}  exd5 {[%clk 0:02:42]} 12. Rfd1 {[%clk 0:02:53]}  a6 {[%clk 0:02:39]} 13. h3 {[%clk 0:02:50]}  Re8 {[%clk 0:02:39]} 14. Rac1 {[%clk 0:02:47]}  Bd6 {[%clk 0:02:36]} 15. Bb1 {[%clk 0:02:45]}  Qe7 {[%clk 0:02:28]} 16. dxc5 {[%clk 0:02:43]}  bxc5 {[%clk 0:02:25]} 17. Qc2 {[%clk 0:02:39]}  Nf8 {[%clk 0:02:13]} 18. Na4 {[%clk 0:02:34]}  Ne4 {[%clk 0:02:02]} 19. Qe2 {[%clk 0:02:27]}  Rad8 {[%clk 0:01:52]} 20. Bxe4 {[%clk 0:02:24]}  Qxe4 {[%clk 0:01:38]} 21. Nxc5 {[%clk 0:02:22]}  Bxc5 {[%clk 0:01:28]} 22. Rxc5 {[%clk 0:02:22]}  Ne6 {[%clk 0:01:28]} 23. Rcc1 {[%clk 0:02:11]}  d4 {[%clk 0:01:23]} 24. Qd3 {[%clk 0:01:58]}  Qxd3 {[%clk 0:00:24]} 25. Rxd3 {[%clk 0:01:57]}  Be4 {[%clk 0:00:15]} 26. Rdd1 {[%clk 0:01:57]}  dxe3 {[%clk 0:00:09]} 27. fxe3 {[%clk 0:01:56]}  f6 {[%clk 0:00:05]} 28. Kf2 {[%clk 0:01:55]}  Nc5 {[%clk 0:00:04]} 29. Rxd8 {[%clk 0:01:54]}  Rxd8 {[%clk 0:00:03]} 30. Rxc5 {[%clk 0:01:53]}  h5 {[%clk 0:00:02]} 31. Bd4 {[%clk 0:01:53]}  Kh7 {[%clk 0:00:02]} 32. Rxh5+ {[%clk 0:01:52]}  Kg6 {[%clk 0:00:02]} 33. Ra5 {[%clk 0:01:53]}  Rd6 {[%clk 0:00:01]} 34. Nd2 {[%clk 0:01:52]}  Bf5 {[%clk 0:00:01]} 35. Nc4 {[%clk 0:01:51]}  Rc6 {[%clk 0:00:01]} 36. Kf3 {[%clk 0:01:50]} 1-0


[Site "https://www.chess.com"]